{"text_format":"3","workbook":"xlsx","n_sheets":2,"sheets":["Başlangıç","Hizmet Faturası"],"not_rendered":{"images":1,"defined_names":1},"read":"whole","date_system":"1900"}

{"sheet":"Başlangıç","index":0,"n_rows":8,"n_cols":2,"rows_kept":8}
[null,"BU ŞABLON HAKKINDA"]
[null,"Bu şablonu basit Hizmet Faturası oluşturmak için kullanın."]
[null,"Fatura numarası, Tarih, Şirket Adı, Adres, Slogan ve Fatura alıcısı ayrıntılarını doldurun."]
[null,"Tablolara bilgileri girin."]
[null,"Toplam sizin için otomatik hesaplanır."]
[null,"Not: "]
[null,"HİZMET FATURASI çalışma sayfasının A sütununda ek yönergeler verilmiştir. Bu metin özellikle gizlenmiştir. Metni kaldırmak için A sütununu ve ardından SİL seçeneğini belirleyin. Metni göstermek için A sütununu seçin ve yazı tipi rengini değiştirin."]
[null,"Tablolar hakkında daha fazla bilgi edinmek için bir tabloda sırasıyla SHIFT ve F10 tuşlarına basıp TABLO seçeneğini belirleyin, ardından ALTERNATİF METİN’i seçin."]

{"sheet":"Hizmet Faturası","index":1,"n_rows":44,"n_cols":5,"rows_kept":44,"merged":[[0,1,0,2],[0,3,0,4],[2,1,2,3],[3,1,3,3],[4,1,4,2],[5,1,5,2],[6,1,6,2],[7,1,7,2],[41,1,41,2],[41,3,41,4],[43,1,43,4]]}
[null,"Logo yer tutucusu bu hücrededir.",null,"FATURA"]
[]
[null,"Şirketinizin Adı"]
[null,"Şirketinizin Sloganı"]
[null,"Açık Adres",null,"FATURA NO.","No."]
[null,"Şehir, Posta Kodu",null,"TARİH ",{"$f":"TODAY()","v":"2022-05-07"}]
[null,"Telefon Faks",null,"MÜŞTERİ KİMLİĞİ ","Kimlik"]
[null,"E-posta"]
[null,"KİME","Ad"]
[null,null,"Şirket Adı"]
[null,null,"Açık Adres"]
[null,null,"Şehir, Posta Kodu"]
[null,null,"Telefon"]
[null,"SATIŞ ELEMANI","İŞ","ÖDEME KOŞULLARI","SON TARİH"]
[{"$nulls":3},"Alındığında ödeme"]
[]
[null,"MİKTAR","AÇIKLAMA","BİRİM FİYATI","SATIR TOPLAMI"]
[{"$nulls":4},{"$f":"IF(SUM(B18)>0,SUM(B18*'Hizmet Faturası'!$D18),\"\")","v":""}]
[{"$nulls":4},{"$f":"IF(SUM(B19)>0,SUM(B19*'Hizmet Faturası'!$D19),\"\")","v":""}]
[{"$nulls":4},{"$f":"IF(SUM(B20)>0,SUM(B20*'Hizmet Faturası'!$D20),\"\")","v":""}]
[{"$nulls":4},{"$f":"IF(SUM(B21)>0,SUM(B21*'Hizmet Faturası'!$D21),\"\")","v":""}]
[{"$nulls":4},{"$f":"IF(SUM(B22)>0,SUM(B22*'Hizmet Faturası'!$D22),\"\")","v":""}]
[{"$nulls":4},{"$f":"IF(SUM(B23)>0,SUM(B23*'Hizmet Faturası'!$D23),\"\")","v":""}]
[{"$nulls":4},{"$f":"IF(SUM(B24)>0,SUM(B24*'Hizmet Faturası'!$D24),\"\")","v":""}]
[{"$nulls":4},{"$f":"IF(SUM(B25)>0,SUM(B25*'Hizmet Faturası'!$D25),\"\")","v":""}]
[{"$nulls":4},{"$f":"IF(SUM(B26)>0,SUM(B26*'Hizmet Faturası'!$D26),\"\")","v":""}]
[{"$nulls":4},{"$f":"IF(SUM(B27)>0,SUM(B27*'Hizmet Faturası'!$D27),\"\")","v":""}]
[{"$nulls":4},{"$f":"IF(SUM(B28)>0,SUM(B28*'Hizmet Faturası'!$D28),\"\")","v":""}]
[{"$nulls":4},{"$f":"IF(SUM(B29)>0,SUM(B29*'Hizmet Faturası'!$D29),\"\")","v":""}]
[{"$nulls":4},{"$f":"IF(SUM(B30)>0,SUM(B30*'Hizmet Faturası'!$D30),\"\")","v":""}]
[{"$nulls":4},{"$f":"IF(SUM(B31)>0,SUM(B31*'Hizmet Faturası'!$D31),\"\")","v":""}]
[{"$nulls":4},{"$f":"IF(SUM(B32)>0,SUM(B32*'Hizmet Faturası'!$D32),\"\")","v":""}]
[{"$nulls":4},{"$f":"IF(SUM(B33)>0,SUM(B33*'Hizmet Faturası'!$D33),\"\")","v":""}]
[{"$nulls":4},{"$f":"IF(SUM(B34)>0,SUM(B34*'Hizmet Faturası'!$D34),\"\")","v":""}]
[{"$nulls":4},{"$f":"IF(SUM(B35)>0,SUM(B35*'Hizmet Faturası'!$D35),\"\")","v":""}]
[{"$nulls":4},{"$f":"IF(SUM(B36)>0,SUM(B36*'Hizmet Faturası'!$D36),\"\")","v":""}]
[{"$nulls":4},{"$f":"IF(SUM(B37)>0,SUM(B37*'Hizmet Faturası'!$D37),\"\")","v":""}]
[{"$nulls":3},"ARA TOPLAM",{"$f":"IF(SUM(E18:E37)>0,SUM(E18:E37),\"\")","v":""}]
[{"$nulls":3},"SATIŞ VERGİSİ"]
[{"$nulls":3},"TOPLAM",{"$f":"IF(SUM(E38)>0,SUM((E38*E39)+E38),\"\")","v":""}]
[]
[null,"Tüm çekleri şu ada yazın",null,{"$f":"B3","v":"Şirketinizin Adı"}]
[]
[null,"BİZİ TERCİH ETTİĞİNİZ İÇİN TEŞEKKÜR EDERİZ!"]